Workbook

Sheet MYP, MSS
B1: Jorma Holmi | E1: 5.4.1962
B2: YKKÖSPESIS | E2: Runkosarja | L2: Runkosarja TOP-10 | Q2: Jatkosarjat | X2: SUOMENSARJA | AA2: Runkosarja | AH2: Runkosarja TOP-10 | AM2: Jatkosarjat
B3: Vuosi | C3: Sija | D3: Seura | E3: OTT | F3: KUN | G3: LÖI | H3: TOI | I3: KL | J3: KL-% | L3: LÖI | M3: TOI | N3: L+T | O3: KL | Q3: OTT | R3: KUN | S3: LÖI | T3: TOI | U3: KL | V3: KL-% | X3: Vuosi | Y3: Sija | Z3: Seura | AA3: OTT | AB3: KUN | AC3: LÖI | AD3: TOI | AE3: KL | AF3: KL-% | AH3: LÖI | AI3: TOI | AJ3: L+T | AK3: KL | AM3: OTT | AN3: KUN | AO3: LÖI | AP3: TOI | AQ3: KL | AR3: KL-%
X4: 1983 | Y4: 2. | Z4: Puhti | AA4: 18 | AB4: 1 | AC4: 12 | AD4: 8
X5: 1984 | Y5: 9. | Z5: Puhti | AA5: 17 | AB5: 1 | AC5: 6 | AD5: 10
X7: 1987 | Y7: 3. | Z7: Puhti | AA7: 22 | AB7: 1 | AC7: 12 | AD7: 43 | AI7: 3. | AJ7: 6.
X8: 1988 | Y8: 2. | Z8: Puhti | AA8: 20 | AB8: 2 | AC8: 5 | AD8: 39 | AI8: 7.
X9: 1989 | Y9: 4. | Z9: Puhti
X10: 1990 | Y10: 1. | Z10: Puhti | AA10: 22 | AB10: 1 | AC10: 5 | AD10: 35 | AI10: 2.
B11: 1991 | C11: 6. | D11: Puhti | E11: 22 | F11: 3 | G11: 15 | H11: 38 | I11: 132 | M11: 7. | O11: 8.
B12: 1992 | C12: 12. | D12: Puhti | E12: 26 | F12: 0 | G12: 4 | H12: 40 | I12: 153 | M12: 6. | O12: 9.
X13: 1993 | Y13: 2. | Z13: Puhti
X14: 1994 | Y14: 3. | Z14: Puhti
X15: 1995 | Y15: 11. | Z15: Puhti
B16: 1996 | C16: 3. | D16: Puhti | F16: maakuntasarja
B17: 1997 | C17: 1. | D17: Puhti | F17: maakuntasarja
B18: 1998 | C18: 12. | D18: Puhti | E18: 20 | F18: 0 | G18: 0 | H18: 4 | I18: 31
B19: 1999 | C19: 14. | D19: Puhti
X21: 2002 | Y21: 5. | Z21: Puhti | AA21: 10 | AB21: 0 | AC21: 4 | AD21: 8 | AE21: 35 | AF21: 67.3 % | AG21: 52
X22: 2003 | Y22: 9. | Z22: Puhti | AA22: 7 | AB22: 0 | AC22: 0 | AD22: 1 | AE22: 12 | AF22: 40.0 % | AG22: 30
B23: YHTEENSÄ | E23: =SUM(E4:E22) -> 68 | F23: =SUM(F4:F22) -> 3 | G23: =SUM(G4:G22) -> 19 | H23: =SUM(H4:H22) -> 82 | I23: =SUM(I4:I22) -> 316 | J23: 0.0 % | K23: =SUM(K4:K22) -> 0 | Q23: =SUM(Q4:Q22) -> 0 | R23: =SUM(R4:R22) -> 0 | S23: =SUM(S4:S22) -> 0 | T23: =SUM(T4:T22) -> 0 | U23: =SUM(U4:U22) -> 0 | V23: 0.0 % | W23: =SUM(W4:W22) -> 0 | X23: YHTEENSÄ | AA23: =SUM(AA4:AA22) -> 116 | AB23: =SUM(AB4:AB22) -> 6 | AC23: =SUM(AC4:AC22) -> 44 | AD23: =SUM(AD4:AD22) -> 144 | AE23: =SUM(AE4:AE22) -> 47 | AF23: =PRODUCT(AE23/AG23) -> 57.3 % | AG23: =SUM(AG4:AG22) -> 82 | AM23: =SUM(AM4:AM22) -> 0 | AN23: =SUM(AN4:AN22) -> 0 | AO23: =SUM(AO4:AO22) -> 0 | AP23: =SUM(AP4:AP22) -> 0 | AQ23: =SUM(AQ4:AQ22) -> 0 | AR23: 0.0 % | AS23: =SUM(AS4:AS22) -> 0
B25: KAIKKI OTTELUT | E25: OTT | F25: KUN | G25: LÖI | H25: TOI | I25: KL | J25: KL-% | L25: ka/L | M25: ka/T | N25: ka/l+t | O25: ka/kl | R25: Seurat | T25: Puhti = Kuusankosken Puhti (19010)
B26: SUPERPESIS | E26: 0 | F26: 0 | G26: 0 | H26: 0 | I26: 0 | J26: 0.0 % | K26: 0 | L26: 0.00 | M26: 0.00 | N26: 0.00 | O26: 0.00
B27: YKKÖSPESIS | E27: =PRODUCT(E23+Q23) -> 68 | F27: =PRODUCT(F23+R23) -> 3 | G27: =PRODUCT(G23+S23) -> 19 | H27: =PRODUCT(H23+T23) -> 82 | I27: =PRODUCT(I23+U23) -> 316 | J27: 0.0 % | K27: =PRODUCT(K23+W23) -> 0 | L27: =PRODUCT((F27+G27)/E27) -> 0.32 | M27: =PRODUCT(H27/E27) -> 1.21 | N27: =PRODUCT((F27+G27+H27)/E27) -> 1.53 | O27: =PRODUCT(I27/E27) -> 4.65
B28: SUOMENSARJA | E28: =PRODUCT(AA23+AM23) -> 116 | F28: =PRODUCT(AB23+AN23) -> 6 | G28: =PRODUCT(AC23+AO23) -> 44 | H28: =PRODUCT(AD23+AP23) -> 144 | I28: =PRODUCT(AE23+AQ23) -> 47 | J28: =PRODUCT(I28/K28) -> 57.3 % | K28: =PRODUCT(AG23+AS23) -> 82 | L28: =PRODUCT((F28+G28)/E28) -> 0.43 | M28: =PRODUCT(H28/E28) -> 1.24 | N28: =PRODUCT((F28+G28+H28)/E28) -> 1.67 | O28: =PRODUCT(I28/17) -> 2.76
B29: YHTEENSÄ | E29: =SUM(E26:E28) -> 184 | F29: =SUM(F26:F28) -> 9 | G29: 63 | H29: 226 | I29: 363 | K29: =SUM(K26:K28) -> 82 | L29: =PRODUCT((F29+G29)/E29) -> 0.39 | M29: =PRODUCT(H29/E29) -> 1.23 | N29: =PRODUCT((F29+G29+H29)/E29) -> 1.62 | O29: =PRODUCT(I29/85) -> 4.27
